bitfinex/quotes_BTCUSD_20241022
["timestamp","ask_amount","ask_price","bid_price","bid_amount"]
[1729603454771,0.149053,67090.0,67081.0,0.005843]
[1729603454988,0.149053,67090.0,67082.0,0.14895915]
[1729603455671,0.150052,67091.0,67082.0,0.14895915]
[1729603455918,0.001,67091.0,67082.0,0.14895915]
[1729603456139,0.001,67088.0,67082.0,0.14895915]
[1729603456597,0.001,67088.0,67082.0,0.15395915]
[1729603456834,0.001,67090.0,67082.0,0.15395915]
[1729603457105,0.149052,67091.0,67082.0,0.15395915]
[1729603457106,0.149052,67091.0,67082.0,0.14895915]
[1729603457333,0.151051,67091.0,67082.0,0.15895915]
[1729603457567,0.151051,67091.0,67082.0,0.15395915]
[1729603457800,0.150051,67091.0,67082.0,0.15195915]
[1729603458950,0.150051,67091.0,67082.0,0.15495915]
[1729603459659,0.26107451,67091.0,67082.0,0.15195915]
[1729603459848,0.17077991,67089.0,67082.0,0.15495915]
[1729603460107,0.17077991,67089.0,67082.0,0.30402915]
[1729603460330,0.17077991,67089.0,67082.0,0.15495915]
[1729603460772,0.17077991,67089.0,67082.0,0.14895915]
[1729603461243,0.17077991,67089.0,67082.0,0.15195915]
[1729603461452,0.17077991,67089.0,67082.0,0.14895915]
[1729603461667,0.17077991,67089.0,67082.0,0.15195915]
[1729603462565,0.17077991,67089.0,67082.0,0.15661115]
[1729603463473,0.17077991,67089.0,67082.0,0.30568115]
[1729603463685,0.149049,67092.0,67082.0,0.30568115]
[1729603463686,0.149051,67091.0,67082.0,0.15661115]
[1729603464127,0.17077991,67092.0,67082.0,0.30568115]
[1729603464561,0.149052,67091.0,67082.0,0.15661115]
[1729603464777,0.17077991,67092.0,67082.0,0.30568015]
[1729603465003,0.17077991,67092.0,67082.0,0.30268015]
[1729603465197,0.31982891,67092.0,67082.0,0.30568015]
[1729603465451,0.31982891,67092.0,67082.0,0.15661115]
[1729603465452,0.149051,67091.0,67082.0,0.15661115]
[1729603466255,0.149051,67091.0,67082.0,0.15361115]
[1729603466605,0.149051,67091.0,67082.0,0.15061115]
[1729603466832,0.149051,67091.0,67082.0,0.15661115]
[1729603467286,0.31982991,67092.0,67082.0,0.30568115]
[1729603467506,0.31982891,67092.0,67082.0,0.30568115]
[1729603467727,0.17077991,67092.0,67082.0,0.30568115]
[1729603467936,0.31982891,67092.0,67082.0,0.30568115]
[1729603468153,0.31982891,67092.0,67082.0,0.30268115]
[1729603468385,0.149051,67091.0,67082.0,0.30268115]
[1729603469307,0.149051,67091.0,67082.0,0.15361115]
[1729603469532,0.411931,67092.0,67082.0,0.29968115]
[1729603469749,0.411931,67092.0,67082.0,0.30268115]
[1729603470264,0.411931,67092.0,67082.0,0.30568115]
[1729603470479,0.35041834,67092.0,67082.0,0.30568115]
[1729603470738,0.04437529,67097.0,67090.0,0.149052]
[1729603470990,0.2237587,67096.0,67091.0,0.29800815]
[1729603471229,0.149032,67100.0,67091.0,0.14895915]
[1729603471476,0.10926725,67098.0,67091.0,0.14895915]
[1729603471700,0.10926725,67092.0,67091.0,0.14895915]
[1729603473566,0.10926725,67092.0,67091.0,0.14995915]
[1729603474076,0.11026725,67092.0,67091.0,0.14895915]
[1729603474303,0.11126725,67092.0,67091.0,0.14895915]
[1729603474748,0.002,67092.0,67091.0,0.15061115]
[1729603479769,0.04637529,67092.0,67091.0,0.15061115]
[1729603480242,0.002,67092.0,67091.0,0.15061115]
[1729603482126,0.04637529,67092.0,67091.0,0.15061115]
[1729603484189,0.002,67092.0,67091.0,0.15061115]
[1729603485186,0.06856293,67092.0,67091.0,0.15061115]
[1729603485808,0.06894752,67092.0,67091.0,0.15061115]
[1729603486412,0.002,67092.0,67091.0,0.15061115]
[1729603486643,0.33831788,67092.0,67091.0,0.15061115]
[1729603486893,0.33831788,67092.0,67091.0,0.001652]
[1729603486894,0.41207176,67092.0,67091.0,0.001652]
[1729603487781,0.33059912,67092.0,67091.0,0.001652]
[1729603490578,0.31663088,67092.0,67091.0,0.001652]
[1729603490796,0.33059984,67092.0,67091.0,0.001652]
[1729603494379,0.46449489,67092.0,67091.0,0.001652]
[1729603494817,0.46449445,67092.0,67091.0,0.001652]
[1729603495028,0.3305994,67092.0,67091.0,0.001652]
[1729603495445,0.46449445,67092.0,67091.0,0.001652]
[1729603497808,0.46494938,67092.0,67091.0,0.001652]
[1729603498023,0.33084924,67092.0,67091.0,0.001652]
[1729603498255,0.46494911,67092.0,67091.0,0.001652]
[1729603499130,0.46495247,67092.0,67091.0,0.001652]
[1729603500474,0.46495159,67092.0,67091.0,0.001652]
[1729603500677,0.46495044,67092.0,67091.0,0.001652]
[1729603503015,0.59757595,67092.0,67091.0,0.001652]
[1729603503429,0.46347387,67092.0,67091.0,0.001652]
[1729603503642,0.33084836,67092.0,67091.0,0.001652]
[1729603505932,0.33085548,67092.0,67091.0,0.001652]
[1729603507348,0.31688783,67092.0,67091.0,0.001652]
[1729603508472,0.33085685,67092.0,67091.0,0.001652]
[1729603509112,0.31688783,67092.0,67091.0,0.001652]
[1729603509373,0.43470773,67092.0,67091.0,0.001652]
[1729603510463,0.30194095,67092.0,67091.0,0.001652]
[1729603510680,0.3019421,67092.0,67091.0,0.001652]
[1729603510906,0.31688783,67092.0,67091.0,0.001652]
[1729603512929,0.4509911,67092.0,67091.0,0.001652]
[1729603515060,0.31688783,67092.0,67091.0,0.001652]
[1729603516141,0.4509911,67092.0,67091.0,0.001652]
[1729603516330,0.31688783,67092.0,67091.0,0.001652]
[1729603516547,0.4509911,67092.0,67091.0,0.001652]
[1729603516990,0.46593983,67092.0,67082.0,0.20336469]
[1729603517189,0.06705216,67085.0,67083.0,0.29802715]
[1729603517542,0.06705216,67085.0,67084.0,0.149066]
[1729603517759,0.06705216,67085.0,67084.0,0.29802515]
[1729603518339,0.06705216,67086.0,67084.0,0.14895915]
[1729603518559,0.06705216,67086.0,67085.0,0.14895915]
[1729603518975,0.06705216,67086.0,67085.0,0.29802315]
[1729603519186,0.06705216,67086.0,67085.0,0.14895915]
[1729603519402,0.08940289,67087.0,67085.0,0.14895915]
[1729603519652,0.001,67086.0,67085.0,0.14895915]
[1729603519879,0.002,67086.0,67085.0,0.14895915]
[1729603520300,0.06905358,67086.0,67085.0,0.14895915]
[1729603520720,0.002,67086.0,67085.0,0.14895915]
[1729603520930,0.16701569,67086.0,67085.0,0.14895915]
[1729603521146,0.16601569,67086.0,67085.0,0.29802315]
[1729603521352,0.16701569,67086.0,67085.0,0.30902315]
[1729603521868,0.16701569,67086.0,67085.0,0.15995915]
[1729603522113,0.16701569,67086.0,67085.0,0.15495915]
[1729603522320,0.16801569,67086.0,67085.0,0.15995915]
[1729603522750,0.16801569,67086.0,67085.0,0.30902315]
[1729603522957,0.003,67086.0,67085.0,0.30902315]
[1729603523165,0.003,67086.0,67085.0,0.15995915]
[1729603523383,0.003,67086.0,67085.0,0.30902315]
[1729603523597,0.003,67086.0,67085.0,0.15995915]
[1729603523788,0.003,67086.0,67085.0,0.30902315]
[1729603524248,0.1680365,67086.0,67085.0,0.30902315]
[1729603524428,0.1680365,67086.0,67085.0,0.15995915]
[1729603525095,0.003,67086.0,67085.0,0.15995915]
[1729603525339,0.003,67086.0,67085.0,0.30902315]
[1729603525555,0.16805232,67086.0,67085.0,0.31125914]
[1729603525977,0.16705232,67086.0,67085.0,0.30625914]
[1729603526214,0.16505232,67086.0,67085.0,0.30425914]
[1729603526431,0.16505232,67086.0,67085.0,0.30925914]
[1729603526650,0.16505232,67086.0,67085.0,0.16019514]
[1729603527077,0.27683378,67086.0,67085.0,0.16019514]
[1729603528230,0.16505232,67086.0,67085.0,0.16019514]
[1729603528466,0.16505232,67086.0,67085.0,0.49669514]
[1729603529294,0.16505232,67086.0,67085.0,0.64575914]
[1729603530375,0.01398076,67089.0,67085.0,0.49669514]
[1729603530592,0.000826,67092.0,67085.0,0.49669514]
[1729603530593,0.1651029,67088.0,67085.0,0.64575914]
[1729603530827,0.1651029,67087.0,67085.0,0.64575914]
[1729603531068,0.1651029,67086.0,67085.0,0.64575914]
[1729603531340,0.1651029,67086.0,67085.0,0.63675914]
[1729603531585,0.1651029,67086.0,67085.0,0.49669514]
[1729603531803,0.1651029,67086.0,67085.0,0.49169514]
[1729603532058,0.1651029,67086.0,67085.0,0.48769514]
[1729603532289,0.1651029,67086.0,67085.0,0.49269514]
[1729603532516,0.1651029,67086.0,67085.0,0.64075914]
[1729603532964,0.1651029,67086.0,67085.0,0.64575914]
[1729603533882,0.1651029,67086.0,67085.0,0.49669514]
[1729603534073,0.1651029,67086.0,67085.0,0.64175914]
[1729603534521,0.1659289,67086.0,67085.0,0.64575914]
[1729603534736,0.1659289,67086.0,67085.0,0.49669514]
[1729603534980,0.1659289,67086.0,67085.0,0.49269514]
[1729603535187,0.1659289,67086.0,67085.0,0.48969514]
[1729603535608,0.1659289,67086.0,67085.0,0.63875914]
[1729603536016,0.1659289,67086.0,67085.0,0.64175914]
[1729603536734,0.1659289,67086.0,67085.0,0.49269514]
[1729603538034,0.1659289,67086.0,67085.0,0.49069514]
[1729603538251,0.1659289,67086.0,67085.0,0.48769514]
[1729603538462,0.1669289,67086.0,67085.0,0.48769514]
[1729603539146,0.1669289,67086.0,67085.0,0.14895915]
[1729603546067,0.1669687,67086.0,67085.0,0.14895915]
[1729603547721,0.1669687,67086.0,67085.0,0.29802315]
[1729603547976,0.1669687,67086.0,67085.0,0.14895915]
[1729603548213,0.1669687,67086.0,67085.0,0.29802315]
[1729603548960,0.1669687,67086.0,67085.0,0.73286837]
[1729603548961,0.04655875,67086.0,67085.0,0.73286837]
[1729603549223,0.001826,67086.0,67085.0,0.77633608]
[1729603549735,0.002826,67086.0,67085.0,0.67306883]
[1729603549985,0.001826,67086.0,67085.0,0.66706883]
[1729603550401,0.001826,67086.0,67085.0,0.67306883]
[1729603550653,0.001826,67086.0,67085.0,0.56247209]
[1729603550876,0.002826,67086.0,67085.0,0.56947209]
[1729603551333,0.001826,67086.0,67085.0,0.56247209]
[1729603551543,0.000826,67086.0,67085.0,0.55647209]
[1729603551764,0.002826,67086.0,67085.0,0.56947209]
[1729603552010,0.002826,67086.0,67085.0,0.96947209]
[1729603552470,0.001826,67086.0,67085.0,0.91702315]
[1729603552692,0.002826,67086.0,67085.0,0.92302315]
[1729603553149,0.002826,67086.0,67085.0,0.6272904]
[1729603554721,0.002826,67086.0,67085.0,0.49002315]
[1729603555847,0.002826,67086.0,67085.0,0.48302315]
[1729603555848,0.001826,67086.0,67085.0,0.48302315]
[1729603556090,0.000826,67086.0,67085.0,0.47702315]
[1729603556343,0.001826,67086.0,67085.0,0.48302315]
[1729603556608,0.000826,67086.0,67085.0,0.47702315]
[1729603557075,0.001826,67086.0,67085.0,0.48302315]
[1729603557526,0.000826,67086.0,67085.0,0.47702315]
[1729603557985,0.002826,67086.0,67085.0,0.48802315]
[1729603558678,0.002826,67086.0,67085.0,0.6369823]
[1729603558914,0.002826,67086.0,67085.0,0.48802315]
[1729603562254,0.002826,67086.0,67085.0,0.48302315]
[1729603562483,0.002826,67086.0,67085.0,0.48802315]
[1729603565277,0.002826,67086.0,67085.0,0.40822315]
[1729603568475,0.002826,67086.0,67085.0,0.31402315]
[1729603568703,0.002826,67086.0,67085.0,0.30902315]
[1729603569821,0.002826,67086.0,67085.0,0.15995915]
[1729603570508,0.002826,67086.0,67085.0,0.30902315]
[1729603575461,0.002826,67086.0,67085.0,0.15995915]
[1729603575929,0.002826,67086.0,67085.0,0.30902315]
[1729603577290,0.227588,67086.0,67085.0,0.011]
[1729603577547,0.27222223,67086.0,67085.0,0.011]
[1729603577991,0.12316023,67086.0,67085.0,0.011]
[1729603578229,0.12216023,67086.0,67085.0,0.005]
[1729603578446,0.12116023,67086.0,67085.0,0.005]
[1729603578673,0.12316023,67086.0,67085.0,0.01]
[1729603578899,0.29453935,67086.0,67085.0,0.01]
[1729603580023,0.42334712,67086.0,67085.0,0.005]
[1729603580487,0.61044118,67086.0,67085.0,0.01]
[1729603580698,0.35639577,67086.0,67085.0,0.01]
[1729603580918,0.52117651,67086.0,67085.0,0.01]
[1729603581147,0.35639577,67086.0,67085.0,0.01]
[1729603581427,0.27328842,67086.0,67082.0,0.001652]
[1729603581635,0.04463641,67083.0,67082.0,0.001652]
[1729603582343,0.19370541,67083.0,67082.0,0.001652]
[1729603582602,0.31270681,67083.0,67082.0,0.001652]
[1729603582883,0.5221004,67083.0,67082.0,0.001652]
[1729603583131,0.42446814,67083.0,67082.0,0.002652]
[1729603583370,0.52208712,67083.0,67082.0,0.002652]
[1729603583836,0.68788712,67083.0,67082.0,0.002652]
[1729603584290,0.68988712,67083.0,67082.0,0.001652]
[1729603585238,0.57831481,67083.0,67082.0,0.001652]
[1729603585679,0.48163161,67083.0,67082.0,0.001652]
[1729603585904,0.57277125,67083.0,67082.0,0.001652]
[1729603586129,0.3857864,67083.0,67082.0,0.001652]
[1729603586360,0.318869,67083.0,67082.0,0.001652]
[1729603586601,0.57275092,67083.0,67082.0,0.001652]
[1729603587302,0.71303197,67083.0,67082.0,0.001652]
[1729603588174,0.52604408,67083.0,67082.0,0.001652]
[1729603589048,0.63531133,67083.0,67082.0,0.001652]
[1729603590017,0.52604408,67083.0,67082.0,0.001652]
[1729603590243,0.36855005,67083.0,67082.0,0.001652]
[1729603590483,0.004,67083.0,67082.0,0.001652]
[1729603590716,0.153069,67083.0,67082.0,0.001652]
[1729603591740,0.004,67083.0,67082.0,0.001652]
[1729603592217,0.153069,67083.0,67082.0,0.001652]
[1729603596520,0.153069,67083.0,67082.0,0.02498613]
[1729603597460,0.28668272,67083.0,67082.0,0.02498613]
[1729603602131,0.39594997,67083.0,67082.0,0.02498613]
[1729603605184,0.28668272,67083.0,67082.0,0.02498613]
[1729603605430,0.150369,67083.0,67082.0,0.02498613]
[1729603605809,0.150369,67083.0,67082.0,0.02476188]
[1729603613620,0.151195,67083.0,67082.0,0.02476188]
[1729603618924,0.26046225,67083.0,67082.0,0.02476188]
[1729603619349,0.26546225,67083.0,67082.0,0.02476188]
[1729603619582,0.39888858,67083.0,67082.0,0.02476188]
[1729603621063,0.156195,67083.0,67082.0,0.02476188]
[1729603621269,0.26546225,67083.0,67082.0,0.02476188]
[1729603622059,0.156195,67083.0,67082.0,0.02476188]
[1729603636127,0.002126,67083.0,67082.0,0.41889203]
[1729603636353,0.002126,67083.0,67082.0,0.49509203]
[1729603636555,0.002126,67083.0,67082.0,0.64405118]
[1729603636761,0.002126,67083.0,67082.0,0.64905118]
[1729603636975,0.002126,67083.0,67082.0,0.69546013]
[1729603637237,0.000826,67083.0,67082.0,0.73046013]
[1729603637438,0.000826,67086.0,67085.0,0.342764]
[1729603637641,0.000826,67086.0,67085.0,0.92862575]
[1729603638294,0.000826,67086.0,67085.0,1.10809125]
[1729603638527,0.000826,67086.0,67085.0,1.17094955]
[1729603638919,0.001826,67086.0,67085.0,1.17594955]
[1729603639145,0.001826,67086.0,67085.0,1.0616823]
[1729603639354,0.001826,67086.0,67085.0,1.17094955]
[1729603639557,0.21909174,67097.0,67096.0,0.14904]
[1729603639758,0.21909174,67097.0,67096.0,0.36022295]
[1729603639966,0.298039,67106.0,67097.0,0.298075]
[1729603640165,0.149022,67104.0,67098.0,0.14895915]
[1729603640405,0.149022,67104.0,67099.0,0.149031]
[1729603640623,0.149021,67105.0,67100.0,0.14895915]
[1729603640829,0.14902,67105.0,67100.0,0.14895915]
[1729603641459,0.14902,67105.0,67100.0,0.29799015]
[1729603641667,0.002,67104.0,67100.0,0.29799015]
[1729603641861,0.001,67104.0,67100.0,0.29799015]
[1729603642007,0.001,67104.0,67100.0,0.30299015]
[1729603642223,0.001,67104.0,67103.0,0.00223539]
[1729603642875,0.15002,67105.0,67103.0,0.00223539]
[1729603643273,0.15102,67105.0,67103.0,0.00223539]
[1729603643470,0.149022,67104.0,67103.0,0.00223539]
[1729603643686,0.149025,67103.0,67101.0,0.0997]
[1729603643881,0.299041,67105.0,67103.0,0.003]
[1729603644073,0.149022,67104.0,67103.0,0.003]
[1729603644460,0.001,67104.0,67101.0,0.14895915]
[1729603644678,0.149023,67104.0,67101.0,0.14895915]
[1729603644919,0.149023,67104.0,67103.0,0.003]
[1729603645918,0.001,67104.0,67102.0,0.00223542]
[1729603647125,0.149024,67103.0,67102.0,0.00223542]
[1729603647323,0.002,67104.0,67102.0,0.00223542]
[1729603647529,0.154022,67104.0,67102.0,0.00223542]
[1729603647731,0.149024,67103.0,67102.0,0.00223542]
[1729603648156,0.003,67104.0,67098.0,0.02332733]
[1729603648361,0.149026,67102.0,67098.0,0.02332733]
[1729603648581,0.149031,67100.0,67098.0,0.02332733]
[1729603648736,0.298053,67102.0,67098.0,0.02332733]
[1729603648938,0.149029,67101.0,67098.0,0.02332733]
[1729603649658,0.298053,67102.0,67098.0,0.02332733]
[1729603649873,0.149029,67101.0,67098.0,0.02432733]
[1729603650268,0.298045,67104.0,67098.0,0.02432733]
[1729603650469,0.298871,67104.0,67098.0,0.02432733]
[1729603650894,0.149027,67102.0,67098.0,0.02432733]
[1729603651097,0.149027,67102.0,67098.0,0.02532733]
[1729603651272,0.149027,67102.0,67098.0,0.02432733]
[1729603651469,0.149031,67101.0,67098.0,0.02432733]
[1729603651808,0.149025,67103.0,67098.0,0.02532733]
[1729603652121,0.149025,67103.0,67098.0,0.02432733]
[1729603652331,0.149025,67103.0,67098.0,0.02532733]
[1729603652536,0.149848,67104.0,67098.0,0.02532733]
[1729603652746,0.149848,67104.0,67099.0,0.0936]
[1729603653183,0.000826,67104.0,67099.0,0.0936]
[1729603653413,0.000826,67104.0,67099.0,0.24255915]
[1729603654083,0.149025,67103.0,67099.0,0.24255915]
[1729603655474,0.149849,67104.0,67099.0,0.24255915]
[1729603656494,0.149848,67104.0,67099.0,0.24255915]
[1729603656827,0.000826,67104.0,67102.0,0.07963527]
[1729603657631,0.000826,67104.0,67102.0,0.0774]
[1729603658667,0.149848,67104.0,67102.0,0.0774]
[1729603658905,0.152848,67104.0,67102.0,0.0774]
[1729603659089,0.15566859,67104.0,67102.0,0.0774]
[1729603659457,0.00664659,67104.0,67102.0,0.0774]
[1729603659880,0.15566959,67104.0,67099.0,0.24255915]
[1729603660284,0.149029,67101.0,67099.0,0.24255915]
[1729603660479,0.15566959,67104.0,67099.0,0.24255915]
[1729603660894,0.00664659,67104.0,67099.0,0.24255915]
[1729603661092,0.00364659,67104.0,67100.0,0.149029]
[1729603661337,0.00364659,67104.0,67100.0,0.28801255]
[1729603661538,0.00364659,67104.0,67100.0,0.13898355]
[1729603661739,0.00064659,67104.0,67100.0,0.13898355]
[1729603662391,0.00064659,67104.0,67099.0,0.39159015]
[1729603662612,0.14966859,67104.0,67099.0,0.24255915]
[1729603663305,0.15066859,67104.0,67099.0,0.24255915]
[1729603663803,0.15166859,67104.0,67099.0,0.24255915]
[1729603664120,0.15066859,67104.0,67099.0,0.24255915]
[1729603664414,0.15066859,67104.0,67102.0,0.0022354]
[1729603665220,0.14966859,67104.0,67102.0,0.0022354]
[1729603666057,0.14966859,67104.0,67099.0,0.24255915]
[1729603666576,0.15266859,67104.0,67099.0,0.24255915]
[1729603666761,0.15566859,67104.0,67099.0,0.24255915]
[1729603666929,0.15266859,67104.0,67099.0,0.24255915]
[1729603667137,0.14966859,67104.0,67099.0,0.24255915]
[1729603667355,0.14966859,67104.0,67102.0,0.00223542]
[1729603668321,0.14966859,67104.0,67099.0,0.24255915]
[1729603668528,0.00364659,67104.0,67099.0,0.24255915]
[1729603669210,0.00664659,67104.0,67099.0,0.24255915]
[1729603669817,0.00364659,67104.0,67102.0,0.00223532]
[1729603670023,0.00364659,67104.0,67099.0,0.24255915]
[1729603670228,0.00064659,67104.0,67100.0,0.149031]
[1729603670443,0.00064659,67104.0,67099.0,0.24255915]
[1729603670444,0.14966959,67104.0,67099.0,0.24255915]
[1729603671421,0.149025,67103.0,67099.0,0.24255915]
[1729603671614,0.14966859,67104.0,67102.0,0.00223531]
[1729603672133,0.00064659,67104.0,67102.0,0.00223531]
[1729603672351,0.00064659,67104.0,67099.0,0.39159215]
[1729603672573,0.14966859,67104.0,67099.0,0.39159215]
[1729603673126,0.00064659,67104.0,67099.0,0.24255915]
[1729603673356,0.00364659,67104.0,67102.0,0.00223542]
[1729603674064,0.00364659,67104.0,67099.0,0.39324015]
[1729603674214,0.15266859,67104.0,67099.0,0.39324015]
[1729603674614,0.14966859,67104.0,67099.0,0.39324015]
[1729603674839,0.15266859,67104.0,67099.0,0.39324015]
[1729603676019,0.14966859,67104.0,67102.0,0.00223542]
[1729603677528,0.15266859,67104.0,67099.0,0.39324015]
[1729603677782,0.00364659,67104.0,67099.0,0.39324015]
[1729603678113,0.00664659,67104.0,67099.0,0.39324015]
[1729603678526,0.15266959,67104.0,67099.0,0.39324015]
[1729603678669,0.15266959,67104.0,67103.0,0.00223531]
[1729603679213,0.14966959,67104.0,67103.0,0.00223531]
[1729603679580,0.14966959,67104.0,67099.0,0.39324015]
[1729603680007,0.15366959,67104.0,67099.0,0.39324015]
[1729603680209,0.00464659,67104.0,67102.0,0.00223537]
[1729603680619,0.00464659,67104.0,67103.0,0.149024]
[1729603680819,0.00064659,67104.0,67103.0,0.4974504]
[1729603681082,0.00064659,67104.0,67103.0,0.46708315]
[1729603681403,0.00064659,67104.0,67103.0,0.31805915]
[1729603681617,0.00064659,67104.0,67103.0,0.23915915]
[1729603682034,0.00464659,67104.0,67103.0,0.23915915]
[1729603682435,0.00464659,67104.0,67103.0,0.38818315]
[1729603682657,0.00164659,67104.0,67103.0,0.39318315]
[1729603682818,0.00064659,67104.0,67103.0,0.38818315]
[1729603683024,0.00064659,67104.0,67103.0,0.39218315]
[1729603683301,0.00064659,67104.0,67103.0,0.39618315]
[1729603683504,0.00064659,67104.0,67103.0,0.15695915]
[1729603684036,0.00064659,67104.0,67103.0,0.30598315]
[1729603684219,0.00064659,67104.0,67103.0,0.70510865]
[1729603684421,0.00064659,67104.0,67103.0,0.6188414]
[1729603685390,0.00064659,67104.0,67103.0,0.6148414]
[1729603685827,0.00164659,67104.0,67103.0,0.6178414]
[1729603686226,0.00164659,67104.0,67103.0,0.6208414]
[1729603686430,0.00064659,67104.0,67103.0,0.6108414]
[1729603686634,0.00164659,67104.0,67103.0,1.0178414]
[1729603686840,0.00264659,67104.0,67103.0,1.0278414]
[1729603687130,0.00264659,67104.0,67103.0,1.0048414]
[1729603687339,0.00264659,67104.0,67103.0,0.89498315]
[1729603687539,0.00264659,67104.0,67103.0,0.49498315]
[1729603698828,0.00264659,67104.0,67103.0,0.26575915]
[1729603699050,0.26093584,67104.0,67103.0,0.017]
[1729603699500,0.15166859,67104.0,67103.0,0.017]
[1729603699721,0.15066859,67104.0,67103.0,0.01]
[1729603699956,0.00164659,67104.0,67103.0,0.01]
[1729603700145,0.00064659,67104.0,67102.0,0.00165]
[1729603700351,0.00064659,67104.0,67103.0,0.003]
[1729603700603,0.00664659,67104.0,67103.0,0.004]
[1729603700794,0.15566859,67104.0,67103.0,0.004]
[1729603701350,0.00664659,67104.0,67103.0,0.004]
[1729603701572,0.00664659,67104.0,67103.0,0.001]
[1729603701977,0.01164659,67104.0,67103.0,0.002]
[1729603703463,0.16066859,67104.0,67103.0,0.002]
[1729603704412,0.01164659,67104.0,67103.0,0.002]
[1729603706155,0.01164659,67104.0,67103.0,0.15095915]
[1729603706977,0.01164659,67104.0,67103.0,0.29998315]
[1729603707194,0.01164659,67104.0,67103.0,0.15095915]
[1729603708059,0.00564659,67104.0,67103.0,0.14995915]
[1729603708266,0.00264659,67104.0,67103.0,0.14895915]
[1729603708465,0.00364659,67104.0,67103.0,0.14895915]
[1729603709871,0.00364659,67104.0,67103.0,0.15119443]
[1729603710042,0.00364659,67104.0,67103.0,0.15284643]
[1729603713268,0.00364659,67104.0,67103.0,0.15061115]
[1729603716754,0.00364659,67104.0,67103.0,0.001652]
[1729603718139,0.15266859,67104.0,67103.0,0.001652]
[1729603718382,0.00364659,67104.0,67103.0,0.001652]
[1729603720470,0.15266859,67104.0,67103.0,0.001652]
[1729603723326,0.00364659,67104.0,67103.0,0.001652]
[1729603725208,0.15266859,67104.0,67103.0,0.001652]
[1729603725411,0.00364659,67104.0,67103.0,0.001652]
[1729603736792,0.00364659,67104.0,67103.0,0.00066923]
[1729603736963,0.00364659,67104.0,67103.0,0.00066287]
[1729603749600,0.00364659,67104.0,67103.0,0.14962202]
[1729603749791,0.00364659,67104.0,67103.0,0.29864602]
[1729603750362,0.00364659,67104.0,67103.0,0.14962202]
[1729603750564,0.00364659,67104.0,67103.0,0.29864602]
[1729603750770,0.00364659,67104.0,67103.0,0.14962202]
[1729603750991,0.00364659,67104.0,67103.0,0.29864602]
[1729603751169,0.00364659,67104.0,67103.0,0.14962202]
[1729603751914,0.00364659,67104.0,67103.0,0.29864602]
[1729603752143,0.00164659,67104.0,67103.0,0.29864602]
[1729603752356,0.00064659,67104.0,67103.0,0.29864602]
[1729603752535,0.00364659,67104.0,67103.0,0.29864602]
[1729603752739,0.00364659,67104.0,67103.0,0.14962202]
[1729603753152,0.00064659,67104.0,67103.0,0.14962202]
[1729603759250,0.00064659,67104.0,67103.0,0.30162638]
[1729603759449,0.00064659,67104.0,67103.0,0.47942621]
[1729603759648,0.00064659,67104.0,67103.0,0.47644602]
[1729603760464,0.00164659,67104.0,67103.0,0.48644602]
[1729603760841,0.00264659,67104.0,67103.0,0.49444602]
[1729603761826,0.00164659,67104.0,67103.0,0.48444602]
[1729603762400,0.00264659,67104.0,67103.0,0.49244602]
[1729603762861,0.00264659,67104.0,67103.0,0.61489208]
[1729603764107,0.00264659,67104.0,67103.0,0.49244602]
[1729603782684,0.00264659,67104.0,67103.0,0.41154602]
[1729603785519,0.00264659,67104.0,67103.0,0.31464602]
[1729603786264,0.00264659,67104.0,67103.0,0.16562202]
[1729603786973,0.04731872,67104.0,67103.0,0.16562202]
[1729603787418,0.00264659,67104.0,67103.0,0.16562202]
[1729603787866,0.04732057,67104.0,67103.0,0.16562202]
[1729603789468,0.04732057,67104.0,67103.0,0.31464602]
[1729603789469,0.06965831,67104.0,67103.0,0.31464602]
[1729603789702,0.04732449,67104.0,67103.0,0.31464602]
[1729603789924,0.06965831,67104.0,67103.0,0.16562202]
[1729603790149,0.00264659,67104.0,67103.0,0.16562202]
[1729603790637,0.00264659,67104.0,67103.0,0.31464602]
[1729603790888,0.04732516,67104.0,67103.0,0.31464602]
[1729603791354,0.04732584,67104.0,67103.0,0.31464602]
[1729603791591,0.00264659,67104.0,67103.0,0.31464602]
[1729603793931,0.04733006,67104.0,67103.0,0.31464602]
[1729603794150,0.04733006,67104.0,67103.0,0.16562202]
[1729603794616,0.04733006,67104.0,67103.0,0.31464602]
[1729603795705,0.04733006,67104.0,67103.0,0.16562202]
[1729603795882,0.04733006,67104.0,67103.0,0.31464602]
[1729603796325,0.00264659,67104.0,67103.0,0.31464602]
[1729603797017,0.04733486,67104.0,67103.0,0.31464602]
[1729603797463,0.00264659,67104.0,67103.0,0.31464602]
[1729603798588,0.04733751,67104.0,67103.0,0.31464602]
[1729603800323,0.04733751,67104.0,67103.0,0.31688118]
[1729603800547,0.00264659,67104.0,67103.0,0.16785718]
[1729603800775,0.04733751,67104.0,67103.0,0.16785718]
[1729603801022,0.51042589,67104.0,67103.0,0.01666287]
[1729603801265,0.60442589,67104.0,67103.0,0.01666287]
[1729603801525,0.24713664,67104.0,67103.0,0.01666287]
[1729603801758,0.24713664,67104.0,67103.0,0.31464602]
[1729603801759,0.06966568,67104.0,67103.0,0.31464602]
[1729603802020,0.00264659,67104.0,67103.0,0.46905756]
[1729603802249,0.00264659,67104.0,67103.0,0.56765756]
[1729603802960,0.00164659,67104.0,67103.0,0.40524602]
[1729603803201,0.00164659,67104.0,67103.0,0.51451327]
[1729603803432,0.00064659,67104.0,67103.0,0.39724602]
[1729603803675,0.00164659,67104.0,67103.0,0.40524602]
[1729603803915,0.00264659,67104.0,67103.0,0.52151327]
[1729603804147,0.00164659,67104.0,67103.0,0.5330648]
[1729603804378,0.00064659,67104.0,67103.0,0.5260648]
[1729603804658,0.00164659,67104.0,67103.0,0.51451327]
[1729603804887,0.00264659,67104.0,67103.0,0.52051327]
[1729603807701,0.00264659,67104.0,67103.0,0.41124602]
[1729603807973,0.00264659,67104.0,67103.0,0.16362202]
[1729603808210,0.15166859,67104.0,67103.0,0.01466287]
[1729603808694,0.31658358,67104.0,67103.0,0.01466287]
[1729603808924,0.42829207,67104.0,67103.0,0.01466287]
[1729603809148,0.31658358,67104.0,67103.0,0.01466287]
[1729603809386,0.40593089,67104.0,67103.0,0.01466287]
[1729603809616,0.25690889,67104.0,67103.0,0.01466287]
[1729603809813,0.25689846,67104.0,67103.0,0.01466287]
[1729603810116,0.40592046,67104.0,67103.0,0.01466287]
[1729603810356,0.31657193,67104.0,67103.0,0.01466287]
[1729603810592,0.40591673,67104.0,67103.0,0.01689826]
[1729603810831,0.31656942,67104.0,67103.0,0.01689826]
[1729603811130,0.40591673,67104.0,67103.0,0.01689826]
[1729603811383,0.31656942,67104.0,67103.0,0.01689826]
[1729603811854,0.15166859,67104.0,67103.0,0.01689826]